[Event "7th Leer Open-A 2024"]
[Site "Leer"]
[Date "2024.10.31"]
[Round "1.39"]
[White "Issing, Peter"]
[Black "Wecke, Thoralf"]
[Result "1-0"]
[ECO "A41"]
[WhiteElo "2112"]
[BlackElo "1867"]
[Annotator "RC"]
[PlyCount "125"]
[EventDate "2024.10.14"]
[EventType "swiss"]
[EventCountry "GER"]
[SourceTitle "playchess.com"]
[Source "ChessBase"]
[SourceQuality "1"]
[TimeControl "40/5400+30:900+30"]

1. d4 {[%emt 0:00:06]} d6 {[%emt 0:00:04]} 2. Nf3 {[%emt 0:00:15]} Bg4 {[%emt 0:00:16]} 3. Nbd2 {[%emt 0:00:31]} Nd7 {[%emt 0:00:58]} 4. h3 {[%emt 0:00:33]} Bh5 {[%emt 0:00:17]} 5. g4 {[%emt 0:06:48]} Bg6 {[%emt 0:00:09]} 6. Nh4 {[%emt 0:00:10]} e5 {[%emt 0:00:48]} 7. Nxg6 {[%emt 0:02:38]} hxg6 {[%emt 0:00:15]} 8. dxe5 {[%emt 0:01:33]} dxe5 {[%emt 0:04:40]} 9. Bg2 {[%emt 0:01:24]} c6 {[%emt 0:01:41]} 10. Ne4 {[%emt 0:06:25]} Ngf6 {[%emt 0:12:21]} 11. Nd6+ {[%emt 0:02:32]} Bxd6 {[%emt 0:00:32]} 12. Qxd6 {[%emt 0:00:06]} Rc8 {[%emt 0:05:03]} 13. Bg5 {[%emt 0:10:02]} Qe7 {[%emt 0:01:20]} 14. O-O-O {[%emt 0:06:52]} Qxd6 {[%emt 0:02:12]} 15. Rxd6 {[%emt 0:00:20]} Ke7 {[%emt 0:01:00]} 16. Rd3 {[%emt 0:02:48]} Rhe8 {[%emt 0:08:23]} 17. Rhd1 {[%emt 0:02:46]} Rcd8 {[%emt 0:01:49]} 18. f4 {[%emt 0:06:14]} exf4 {[%emt 0:15:16]} 19. Bxf4 {[%emt 0:02:38]} Nb6 {[%emt 0:04:39]} 20. Bd6+ {[%emt 0:09:30]} Rxd6 {[%emt 0:04:45]} 21. Rxd6 {[%emt 0:00:08]} Nfd5 {[%emt 0:00:06]} 22. Bxd5 {[%emt 0:01:47]} cxd5 {[%emt 0:00:32]} 23. Rxb6 {[%emt 0:00:30]} axb6 {[%emt 0:00:07]} 24. Rxd5 {[%emt 0:00:15]} Rc8 {[%emt 0:02:54]} 25. Rb5 {[%emt 0:01:32]} Rc6 {[%emt 0:00:02]} 26. Kd2 {[%emt 0:02:15]} Rd6+ {[%emt 0:04:47]} 27. Ke1 {[%emt 0:00:48]} Kd7 {[%emt 0:00:18]} 28. Rb3 {[%emt 0:00:31]} g5 {[%emt 0:02:45]} 29. Rf3 {[%emt 0:05:02]} f6 {[%emt 0:01:02]} 30. Kf2 {[%emt 0:08:04]} Rd5 {[%emt 0:04:25]} 31. Rd3 {[%emt 0:02:34]} Ke6 {[%emt 0:01:27]} 32. e4 {[%emt 0:02:25]} Rc5 {[%emt 0:01:44]} 33. c3 {[%emt 0:00:24]} Ra5 {[%emt 0:08:32]} 34. a3 {[%emt 0:00:22]} Re5 {[%emt 0:05:06]} 35. Kf3 {[%emt 0:02:18]} Rc5 {[%emt 0:01:18]} 36. Rd8 {[%emt 0:00:39]} Ke7 {[%emt 0:03:29]} 37. Rg8 {[%emt 0:01:23]} Kf7 {[%emt 0:00:05]} 38. Rb8 {[%emt 0:00:59]} Rc7 {[%emt 0:00:05]} 39. Ke3 {[%emt 0:05:35]} Rd7 {[%emt 0:00:27]} 40. Rc8 {[%emt 0:01:15]} Ke6 {[%emt 0:00:14]} 41. Rc4 {[%emt 0:21:38]} Rd1 {[%emt 0:17:29]} 42. Rb4 {[%emt 0:00:05]} Rd6 {[%emt 0:00:00]} 43. Rd4 {[%emt 0:00:00]} Rc6 {[%emt 0:00:00]} 44. Rd8 {[%emt 0:00:00]} Ke7 {[%emt 0:00:00]} 45. Rd5 {[%emt 0:00:00]} Ke6 {[%emt 0:00:00]} 46. Kd3 {[%emt 0:00:00]} g6 {[%emt 0:00:00]} 47. Rd8 {[%emt 0:00:00]} Rc7 {[%emt 0:00:00]} 48. Rh8 {[%emt 0:00:00]} Ke5 {[%emt 0:00:00]} 49. Ke3 {[%emt 0:00:00]} Rd7 {[%emt 0:00:00]} 50. Re8+ {[%emt 0:00:00]} Kd6 {[%emt 0:00:00]} 51. Rg8 {[%emt 0:00:00]} Ke5 {[%emt 0:00:00]} 52. Re8+ {[%emt 0:00:00]} Kd6 {[%emt 0:00:00]} 53. e5+ {[%emt 0:00:07]} fxe5 {[%emt 0:00:00]} 54. Rg8 {[%emt 0:00:20]} Rh7 {[%emt 0:00:00]} 55. Rxg6+ {[%emt 0:01:06]} Kc7 {[%emt 0:01:06]} 56. Rxg5 {[%emt 0:00:54]} Rxh3+ {[%emt 0:00:05]} 57. Ke4 {[%emt 0:00:21]} Rh2 {[%emt 0:00:15]} 58. Kxe5 {[%emt 0:00:12]} Rxb2 {[%emt 0:00:09]} 59. Rg7+ {[%emt 0:00:54]} Kc6 {[%emt 0:00:08]} 60. g5 {[%emt 0:01:25]} Rb3 {[%emt 0:02:32]} 61. Rg8 {[%emt 0:00:49]} Kd7 {[%emt 0:02:31]} 62. g6 {[%emt 0:00:57]} Rxc3 {[%emt 0:00:15]} 63. Rb8 {[%emt 0:01:26]} 1-0

[Event "7th Leer Open-A 2024"]
[Site "Leer"]
[Date "2024.10.31"]
[Round "1.40"]
[White "Aden, Dagmar"]
[Black "Schier, Richard"]
[Result "1/2-1/2"]
[ECO "C56"]
[WhiteElo "1865"]
[BlackElo "1881"]
[Annotator "NA RC"]
[PlyCount "106"]
[EventDate "2024.10.14"]
[EventType "swiss"]
[EventCountry "GER"]
[SourceTitle "playchess.com"]
[Source "ChessBase"]
[SourceQuality "1"]
[TimeControl "40/5400+30:900+30"]

1. e4 {[%emt 0:00:05]} e5 {[%emt 0:00:08]} 2. Bc4 {[%emt 0:00:09]} Nf6 {[%emt 0:00:15]} 3. d4 {[%emt 0:00:29]} exd4 {[%emt 0:08:54]} 4. Nf3 {[%emt 0:00:24]} Nc6 {[%emt 0:01:44]} 5. O-O {[%emt 0:03:36]} Bc5 {[%emt 0:10:07]} 6. Bg5 {[%emt 0:04:42]} h6 {[%emt 0:04:43] C56: Two Knights: 4 d4 exd4 5 0-0 Nxe4.} 7. Bxf6 {[%emt 0:03:59]} Qxf6 {[%emt 0:01:08]} 8. e5 {[%emt 0:01:35]} Qe7 {[%emt 0:00:39]} 9. Nbd2 {[%emt 0:02:10]} O-O {[%emt 0:04:24]} 10. Re1 {[%emt 0:03:07]} a6 {[%emt 0:10:30]} 11. a3 {[%emt 0:02:22]} b5 {[%emt 0:00:20]} 12. Bd5 {[%emt 0:01:39]} Bb6 {[%emt 0:04:16]} 13. Nb3 {[%emt 0:01:56]} Rb8 {[%emt 0:01:57]} 14. Be4 {[%emt 0:09:16]} Kh8 {[%emt 0:05:19]} (14... Nxe5 $2 {is the wrong capture.} 15. Nxe5 Qd6 (15... Qxe5 $2 {too greedy.} 16. Bh7+ Kxh7 17. Rxe5 $18) 16. Qh5 $18) 15. Nbxd4 {[%emt 0:02:46]} Nxe5 {[%emt 0:03:28]} 16. Nf5 {[%emt 0:06:43]} (16. c3 $17) 16... Nxf3+ {[%emt 0:01:44]} 17. Qxf3 {[%emt 0:00:36]} Qf6 {[%emt 0:01:12]} 18. c3 {[%emt 0:07:15] [#]} d5 $1 {[%emt 0:02:43]} 19. Bc2 {[%emt 0:01:03]} Bb7 {[%emt 0:03:10]} 20. Qd3 {[%emt 0:04:17]} g6 {[%emt 0:01:57]} 21. Ne3 {[%emt 0:01:06]} h5 {[%emt 0:02:24]} 22. Rad1 {[%emt 0:09:02]} Rbd8 {[%emt 0:01:14]} 23. Qe2 {[%emt 0:02:42]} d4 {[%emt 0:04:38]} 24. cxd4 {[%emt 0:00:53]} Bxd4 {[%emt 0:00:41]} 25. b3 {[%emt 0:01:05]} Rfe8 {[%emt 0:01:49]} 26. Qf1 {[%emt 0:03:44]} c5 {[%emt 0:02:52]} 27. a4 {[%emt 0:01:07]} Bc6 {[%emt 0:01:43]} 28. axb5 {[%emt 0:02:02]} axb5 {[%emt 0:00:11]} 29. Bd3 {[%emt 0:01:31]} Rb8 {[%emt 0:00:56]} 30. Nc2 {[%emt 0:01:04]} Be5 {[%emt 0:01:03]} 31. Re3 {[%emt 0:04:56]} b4 {[%emt 0:05:54]} 32. Bc4 {[%emt 0:01:56]} Bf4 {[%emt 0:01:53]} 33. Rxe8+ {[%emt 0:02:16]} Rxe8 {[%emt 0:00:07]} 34. Bb5 {[%emt 0:01:42]} Kg7 {[%emt 0:01:05]} 35. Bxc6 {[%emt 0:00:57]} Qxc6 {[%emt 0:00:06]} 36. Qc4 {[%emt 0:01:26]} Re4 {[%emt 0:01:39]} 37. Qd3 {[%emt 0:02:31]} c4 {[%emt 0:02:30]} 38. bxc4 {[%emt 0:00:38]} Rxc4 {[%emt 0:00:26]} 39. Ne3 {[%emt 0:01:16]} Bxe3 {[%emt 0:00:59]} 40. Qxe3 {[%emt 0:00:16]} Qc5 {[%emt 0:01:51]} 41. Qxc5 {[%emt 0:18:44]} Rxc5 {[%emt 0:15:11]} 42. Kf1 {[%emt 0:00:10]} Kf6 {[%emt 0:00:45]} 43. Rd6+ {[%emt 0:00:13]} Ke5 {[%emt 0:00:29]} 44. Rb6 {[%emt 0:00:13]} Rc4 {[%emt 0:00:24]} 45. Ke2 {[%emt 0:00:28]} Rc2+ {[%emt 0:01:01]} 46. Ke3 {[%emt 0:00:45]} Rb2 {[%emt 0:00:13]} 47. g3 {[%emt 0:02:56]} Rb3+ {[%emt 0:01:20]} 48. Kd2 {[%emt 0:00:44]} Kd4 {[%emt 0:00:57]} 49. Rf6 {[%emt 0:01:37]} Rb2+ {[%emt 0:00:44]} 50. Kc1 {[%emt 0:00:19]} Re2 {[%emt 0:00:42]} 51. Rxf7 {[%emt 0:02:47]} Kc3 {[%emt 0:00:27]} ({Zwart zou moeten spelen} 51... g5 $17 52. h3 h4) 52. Rf3+ {[%emt 0:00:20]} Kc4 {[%emt 0:00:12]} 53. Kb1 {[%emt 0:01:44] [#]} Re1+ $15 {[%emt 0:01:21]} (53... g5 $1 $17 {[%cal Rg5g4]} 54. Kc1 g4) 1/2-1/2

[Event "7th Leer Open-A 2024"]
[Site "Leer"]
[Date "2024.10.31"]
[Round "1.41"]
[White "zur Bruegge, Carsten"]
[Black "Arnz, Tom Niklas"]
[Result "1/2-1/2"]
[ECO "C10"]
[WhiteElo "2107"]
[BlackElo "1865"]
[Annotator "RC"]
[PlyCount "99"]
[EventDate "2024.10.14"]
[EventType "swiss"]
[EventCountry "GER"]
[SourceTitle "playchess.com"]
[Source "ChessBase"]
[SourceQuality "1"]
[TimeControl "40/5400+30:900+30"]

1. e4 {[%emt 0:00:05]} e6 {[%emt 0:00:32]} 2. d4 {[%emt 0:00:16]} d5 {[%emt 0:00:34]} 3. Nc3 {[%emt 0:00:19]} Nf6 {[%emt 0:01:12]} 4. Bg5 {[%emt 0:00:20]} dxe4 {[%emt 0:00:38]} 5. Nxe4 {[%emt 0:01:04]} Nbd7 {[%emt 0:00:25]} 6. Nf3 {[%emt 0:01:01]} h6 {[%emt 0:00:32]} 7. Nxf6+ {[%emt 0:04:54]} Nxf6 {[%emt 0:00:09]} 8. Bh4 {[%emt 0:00:43]} Bd7 {[%emt 0:04:09]} 9. Ne5 {[%emt 0:02:27]} Bd6 {[%emt 0:04:11]} 10. Nxd7 {[%emt 0:07:00]} Qxd7 {[%emt 0:00:12]} 11. Qf3 {[%emt 0:01:13]} Nd5 {[%emt 0:03:11]} 12. Bc4 {[%emt 0:07:40]} g5 {[%emt 0:03:55]} 13. Bg3 {[%emt 0:01:37]} O-O-O {[%emt 0:01:03]} 14. O-O-O {[%emt 0:01:40]} Nf4 {[%emt 0:06:06]} 15. h4 {[%emt 0:04:40]} Qa4 {[%emt 0:05:28]} 16. Bb3 {[%emt 0:01:36]} Qb5 {[%emt 0:00:53]} 17. Bxf4 {[%emt 0:08:31]} Bxf4+ {[%emt 0:00:32]} 18. Kb1 {[%emt 0:00:04]} Rd7 {[%emt 0:07:22]} 19. g3 {[%emt 0:07:04]} Bd6 {[%emt 0:00:42]} 20. c4 {[%emt 0:00:36]} Qf5+ {[%emt 0:05:20]} 21. Qxf5 {[%emt 0:00:14]} exf5 {[%emt 0:00:06]} 22. Bc2 {[%emt 0:03:51]} Rdd8 {[%emt 0:00:46]} 23. Bxf5+ {[%emt 0:02:42]} Kb8 {[%emt 0:02:23]} 24. hxg5 {[%emt 0:13:27]} hxg5 {[%emt 0:00:26]} 25. Rxh8 {[%emt 0:00:06]} Rxh8 {[%emt 0:00:07]} 26. Re1 {[%emt 0:00:46]} c5 {[%emt 0:01:18]} 27. b4 {[%emt 0:02:09]} cxd4 {[%emt 0:01:35]} 28. c5 {[%emt 0:00:22]} Bc7 {[%emt 0:00:36]} 29. Re7 {[%emt 0:01:26]} f6 {[%emt 0:01:00]} 30. Kc2 {[%emt 0:01:10]} b6 {[%emt 0:04:24]} 31. Kd3 {[%emt 0:02:26]} bxc5 {[%emt 0:05:45]} 32. bxc5 {[%emt 0:00:24]} Rd8 {[%emt 0:02:02]} 33. Kc4 {[%emt 0:03:30]} a5 {[%emt 0:04:17]} 34. Be4 {[%emt 0:04:20]} Kc8 {[%emt 0:05:09]} 35. Kb5 {[%emt 0:06:38]} d3 {[%emt 0:01:42]} 36. Kc6 {[%emt 0:00:39]} Be5 {[%emt 0:01:57]} 37. Ra7 {[%emt 0:01:17]} Kb8 {[%emt 0:05:44]} 38. Kb6 {[%emt 0:00:32]} Rd6+ {[%emt 0:00:23]} 39. cxd6 {[%emt 0:02:28]} Bd4+ {[%emt 0:00:07]} 40. Kc6 {[%emt 0:00:37]} Kxa7 {[%emt 0:01:04]} 41. Bxd3 {[%emt 0:18:25]} Bxf2 {[%emt 0:15:37]} 42. Kd7 {[%emt 0:01:33]} Bxg3 {[%emt 0:06:02]} 43. Ke7 {[%emt 0:00:17]} Kb6 {[%emt 0:00:26]} 44. d7 {[%emt 0:00:41]} Bc7 {[%emt 0:00:07]} 45. d8=Q {[%emt 0:05:10]} Bxd8+ {[%emt 0:00:13]} 46. Kxd8 {[%emt 0:00:00]} g4 {[%emt 0:00:14]} 47. Kd7 {[%emt 0:00:00]} g3 {[%emt 0:00:53]} 48. Bf1 {[%emt 0:00:00]} Kc5 {[%emt 0:00:32]} 49. Ke6 {[%emt 0:00:00]} Kb4 {[%emt 0:00:10]} 50. Kf5 {[%emt 0:00:00]} 1/2-1/2

[Event "7th Leer Open-A 2024"]
[Site "Leer"]
[Date "2024.10.31"]
[Round "1.42"]
[White "Dorr, Joerg"]
[Black "Boesel, Alexander"]
[Result "0-1"]
[ECO "D35"]
[WhiteElo "1865"]
[BlackElo "2045"]
[Annotator "RC"]
[PlyCount "60"]
[EventDate "2024.10.14"]
[EventType "swiss"]
[EventCountry "GER"]
[SourceTitle "playchess.com"]
[Source "ChessBase"]
[SourceQuality "1"]
[TimeControl "40/5400+30:900+30"]

1. d4 {[%emt 0:00:02]} d5 {[%emt 0:00:04]} 2. c4 {[%emt 0:00:08]} e6 {[%emt 0:00:06]} 3. Nc3 {[%emt 0:00:15]} Nf6 {[%emt 0:00:09]} 4. cxd5 {[%emt 0:00:23]} exd5 {[%emt 0:00:08]} 5. Bg5 {[%emt 0:00:17]} c6 {[%emt 0:00:17]} 6. e3 {[%emt 0:01:10]} h6 {[%emt 0:00:30]} 7. Bh4 {[%emt 0:01:03]} Be7 {[%emt 0:00:20]} 8. Bd3 {[%emt 0:00:58]} O-O {[%emt 0:00:17]} 9. Nge2 {[%emt 0:00:59]} Nbd7 {[%emt 0:01:16]} 10. f3 {[%emt 0:02:27]} b5 {[%emt 0:00:35]} 11. O-O {[%emt 0:08:26]} a5 {[%emt 0:02:45]} 12. e4 {[%emt 0:07:53]} b4 {[%emt 0:00:20]} 13. e5 {[%emt 0:01:28]} bxc3 {[%emt 0:00:47]} 14. exf6 {[%emt 0:00:02]} Bxf6 {[%emt 0:00:16]} 15. Bxf6 {[%emt 0:00:05]} Qxf6 {[%emt 0:00:48]} 16. Nxc3 {[%emt 0:02:02]} Qxd4+ {[%emt 0:00:43]} 17. Kh1 {[%emt 0:00:01]} Kh8 {[%emt 0:02:48]} 18. Re1 {[%emt 0:06:53]} Nc5 {[%emt 0:02:56]} 19. Bc2 {[%emt 0:01:35]} Qb4 {[%emt 0:06:58]} 20. Rc1 {[%emt 0:10:02]} Ba6 {[%emt 0:05:27]} 21. Bb1 {[%emt 0:10:26]} Rad8 {[%emt 0:02:11]} 22. Qc2 {[%emt 0:19:47]} f5 {[%emt 0:10:49]} 23. Rcd1 {[%emt 0:03:51]} d4 {[%emt 0:03:29]} 24. a3 {[%emt 0:02:43]} Qb6 {[%emt 0:06:38]} 25. Na4 {[%emt 0:02:23]} Nxa4 {[%emt 0:00:09]} 26. Qxa4 {[%emt 0:00:01]} Qxb2 {[%emt 0:04:13]} 27. Qxc6 {[%emt 0:00:10]} Be2 {[%emt 0:01:22]} 28. Rc1 {[%emt 0:09:23]} d3 {[%emt 0:00:07]} 29. Qg6 {[%emt 0:03:29]} d2 {[%emt 0:01:31]} 30. Bxf5 {[%emt 0:00:44]} Rxf5 {[%emt 0:00:09]} 0-1

[Event "7th Leer Open-A 2024"]
[Site "Leer"]
[Date "2024.10.31"]
[Round "1.44"]
[White "Engelmann, Chris"]
[Black "Sickmann, Lisa"]
[Result "0-1"]
[ECO "B45"]
[WhiteElo "1861"]
[BlackElo "1965"]
[Annotator "RC"]
[PlyCount "80"]
[EventDate "2024.10.14"]
[EventType "swiss"]
[EventCountry "GER"]
[SourceTitle "playchess.com"]
[Source "ChessBase"]
[SourceQuality "1"]
[TimeControl "40/5400+30:900+30"]

1. e4 {[%emt 0:00:03]} c5 {[%emt 0:00:03]} 2. Nf3 {[%emt 0:00:22]} e6 {[%emt 0:00:03]} 3. d4 {[%emt 0:00:34]} cxd4 {[%emt 0:00:06]} 4. Nxd4 {[%emt 0:00:21]} Nf6 {[%emt 0:00:04]} 5. Nc3 {[%emt 0:02:09]} Nc6 {[%emt 0:01:58]} 6. Bg5 {[%emt 0:05:18]} Qb6 {[%emt 0:14:50]} 7. Nb3 {[%emt 0:14:44]} Bb4 {[%emt 0:03:18]} 8. Be3 {[%emt 0:18:18]} Qc7 {[%emt 0:05:21]} 9. f3 {[%emt 0:02:35]} d5 {[%emt 0:04:36]} 10. exd5 {[%emt 0:09:15]} Nxd5 {[%emt 0:00:26]} 11. Bd2 {[%emt 0:10:38]} Nxc3 {[%emt 0:01:34]} 12. bxc3 {[%emt 0:03:16]} Qe5+ {[%emt 0:00:33]} 13. Qe2 {[%emt 0:00:56]} Bxc3 {[%emt 0:00:36]} 14. Qxe5 {[%emt 0:01:31]} Bxd2+ {[%emt 0:02:50]} 15. Nxd2 {[%emt 0:02:11]} Nxe5 {[%emt 0:00:12]} 16. Ne4 {[%emt 0:00:49]} Ke7 {[%emt 0:01:03]} 17. Bb5 {[%emt 0:04:44]} Bd7 {[%emt 0:01:53]} 18. Rb1 {[%emt 0:01:39]} b6 {[%emt 0:01:17]} 19. Ba6 {[%emt 0:01:55]} Bc6 {[%emt 0:04:25]} 20. Nc3 {[%emt 0:01:47]} Rhd8 {[%emt 0:02:15]} 21. Ke2 {[%emt 0:00:50]} Nd7 {[%emt 0:01:11]} 22. Rb4 {[%emt 0:02:55]} Nc5 {[%emt 0:00:48]} 23. Bb5 {[%emt 0:00:35]} Rac8 {[%emt 0:01:37]} 24. Rd1 {[%emt 0:02:35]} Nd7 {[%emt 0:03:52]} 25. Rd2 {[%emt 0:02:33]} Ne5 {[%emt 0:05:55]} 26. Ra4 {[%emt 0:01:25]} a5 {[%emt 0:05:47]} 27. Bxc6 {[%emt 0:04:48]} Rxd2+ {[%emt 0:00:39]} 28. Kxd2 {[%emt 0:00:09]} Rxc6 {[%emt 0:00:07]} 29. Ne2 {[%emt 0:01:08]} Nc4+ {[%emt 0:00:15]} 30. Kc1 {[%emt 0:01:08]} b5 {[%emt 0:00:06]} 31. Nd4 {[%emt 0:00:16]} bxa4 {[%emt 0:01:54]} 32. Nxc6+ {[%emt 0:00:06]} Kd6 {[%emt 0:00:11]} 33. Nd4 {[%emt 0:00:31]} f5 {[%emt 0:01:17]} 34. g3 {[%emt 0:02:20]} g6 {[%emt 0:01:14]} 35. f4 {[%emt 0:01:13]} e5 {[%emt 0:02:09]} 36. Ne2 {[%emt 0:01:27]} e4 {[%emt 0:00:26]} 37. c3 {[%emt 0:00:27]} Kd5 {[%emt 0:00:22]} 38. Kc2 {[%emt 0:00:32]} Ne3+ {[%emt 0:00:53]} 39. Kb2 {[%emt 0:01:07]} Kc4 {[%emt 0:00:40]} 40. Kc1 {[%emt 0:00:44]} Kd3 {[%emt 0:01:09]} 0-1

[Event "7th Leer Open-A 2024"]
[Site "Leer"]
[Date "2024.10.31"]
[Round "1.45"]
[White "Giel, Olaf"]
[Black "Guetschow, Christian"]
[Result "1-0"]
[ECO "A81"]
[WhiteElo "2076"]
[BlackElo "1861"]
[Annotator "RC"]
[PlyCount "73"]
[EventDate "2024.10.14"]
[EventType "swiss"]
[EventCountry "GER"]
[SourceTitle "playchess.com"]
[Source "ChessBase"]
[SourceQuality "1"]
[TimeControl "40/5400+30:900+30"]

1. d4 {[%emt 0:00:03]} e6 {[%emt 0:00:16]} 2. Nf3 {[%emt 0:00:29]} f5 {[%emt 0:00:11]} 3. Bf4 {[%emt 0:00:08]} Nf6 {[%emt 0:01:00]} 4. g3 {[%emt 0:04:33]} d5 {[%emt 0:03:55]} 5. Bg2 {[%emt 0:01:09]} Bd6 {[%emt 0:01:33]} 6. Ne5 {[%emt 0:00:34]} O-O {[%emt 0:00:55]} 7. O-O {[%emt 0:01:32]} Nc6 {[%emt 0:08:14]} 8. c3 {[%emt 0:10:17]} Bd7 {[%emt 0:03:57]} 9. Nd2 {[%emt 0:00:48]} Nh5 {[%emt 0:12:57]} 10. Nxd7 {[%emt 0:05:07]} Qxd7 {[%emt 0:00:42]} 11. Bxd6 {[%emt 0:00:26]} Qxd6 {[%emt 0:02:16]} 12. e4 {[%emt 0:00:35]} g6 {[%emt 0:00:40]} 13. exd5 {[%emt 0:05:00]} exd5 {[%emt 0:00:07]} 14. Qb3 {[%emt 0:00:28]} Nf6 {[%emt 0:02:11]} 15. Rae1 {[%emt 0:00:20]} b6 {[%emt 0:12:08]} 16. Nc4 {[%emt 0:05:25]} Na5 {[%emt 0:14:49]} 17. Nxd6 {[%emt 0:09:36]} Nxb3 {[%emt 0:00:07]} 18. axb3 {[%emt 0:01:34]} cxd6 {[%emt 0:00:08]} 19. Re7 {[%emt 0:02:40]} Rfe8 {[%emt 0:05:33]} 20. Rfe1 {[%emt 0:00:10]} Rxe7 {[%emt 0:00:59]} 21. Rxe7 {[%emt 0:00:08]} Re8 {[%emt 0:01:52]} 22. Bxd5+ {[%emt 0:03:50]} Kh8 {[%emt 0:00:58]} 23. Rxe8+ {[%emt 0:00:28]} Nxe8 {[%emt 0:00:07]} 24. f3 {[%emt 0:01:02]} Kg7 {[%emt 0:01:13]} 25. Kf2 {[%emt 0:00:08]} Kf6 {[%emt 0:00:16]} 26. Ke3 {[%emt 0:00:50]} Nc7 {[%emt 0:00:58]} 27. Bc4 {[%emt 0:00:46]} h6 {[%emt 0:01:10]} 28. b4 {[%emt 0:02:20]} a6 {[%emt 0:01:29]} 29. Be2 {[%emt 0:03:13]} Nd5+ {[%emt 0:03:27]} 30. Kd2 {[%emt 0:00:16]} a5 {[%emt 0:00:45]} 31. Bc4 {[%emt 0:01:12]} Nc7 {[%emt 0:02:39]} 32. bxa5 {[%emt 0:01:22]} bxa5 {[%emt 0:00:06]} 33. b4 {[%emt 0:01:55]} d5 {[%emt 0:01:51]} 34. Bd3 {[%emt 0:00:47]} axb4 {[%emt 0:01:44]} 35. cxb4 {[%emt 0:00:02]} h5 {[%emt 0:00:24]} 36. Kc3 {[%emt 0:01:07]} g5 {[%emt 0:00:31]} 37. b5 {[%emt 0:00:38]} 1-0

[Event "7th Leer Open-A 2024"]
[Site "Leer"]
[Date "2024.10.31"]
[Round "1.46"]
[White "Wolf, Vincent"]
[Black "Thiercelin, Jerome"]
[Result "0-1"]
[ECO "B00"]
[WhiteElo "1754"]
[BlackElo "2084"]
[Annotator "RC"]
[PlyCount "75"]
[EventDate "2024.10.14"]
[EventType "swiss"]
[EventCountry "GER"]
[SourceTitle "playchess.com"]
[Source "ChessBase"]
[SourceQuality "1"]
[TimeControl "40/5400+30:900+30"]

1. e4 {[%emt 0:00:01]} e6 {[%emt 0:00:16]} 2. d4 {[%emt 0:00:03]} b6 {[%emt 0:02:51]} 3. Bd3 {[%emt 0:02:41]} Bb7 {[%emt 0:00:14]} 4. Ne2 {[%emt 0:03:58]} c5 {[%emt 0:07:00]} 5. c3 {[%emt 0:01:58]} Be7 {[%emt 0:03:29]} 6. O-O {[%emt 0:01:08]} Nf6 {[%emt 0:00:14]} 7. Ng3 {[%emt 0:00:56]} d6 {[%emt 0:07:40]} 8. f4 {[%emt 0:05:41]} Nc6 {[%emt 0:02:21]} 9. Be3 {[%emt 0:03:17]} O-O {[%emt 0:04:03]} 10. Nd2 {[%emt 0:04:51]} cxd4 {[%emt 0:01:23]} 11. cxd4 {[%emt 0:00:18]} Nb4 {[%emt 0:00:08]} 12. Be2 {[%emt 0:11:53]} Rc8 {[%emt 0:00:25]} 13. Bf2 {[%emt 0:00:17]} d5 {[%emt 0:08:11]} 14. a3 {[%emt 0:03:19]} Nc6 {[%emt 0:02:19]} 15. e5 {[%emt 0:01:06]} Ne4 {[%emt 0:09:02]} 16. Be3 {[%emt 0:02:04]} Na5 {[%emt 0:02:08]} 17. Bf3 {[%emt 0:06:59]} Nxd2 {[%emt 0:01:29]} 18. Bxd2 {[%emt 0:02:34]} Nc4 {[%emt 0:00:15]} 19. Bc1 {[%emt 0:00:05]} b5 {[%emt 0:01:14]} 20. Qd3 {[%emt 0:06:59]} Qb6 {[%emt 0:06:32]} 21. b3 {[%emt 0:09:32]} Na5 {[%emt 0:00:19]} 22. b4 {[%emt 0:06:31]} Nc6 {[%emt 0:01:25]} 23. Be3 {[%emt 0:05:38]} a5 {[%emt 0:03:30]} 24. bxa5 {[%emt 0:00:35]} Nxa5 {[%emt 0:00:25]} 25. Rfb1 {[%emt 0:00:54]} Nc4 {[%emt 0:00:40]} 26. Bf2 {[%emt 0:00:37]} Ra8 {[%emt 0:03:15]} 27. Rb3 {[%emt 0:00:52]} Ra4 {[%emt 0:00:55]} 28. Be1 {[%emt 0:12:20]} Rfa8 {[%emt 0:01:17]} 29. Rab1 {[%emt 0:00:29]} Rxa3 {[%emt 0:00:37]} 30. Ne2 {[%emt 0:02:13]} Bc6 {[%emt 0:01:32]} 31. Qc2 {[%emt 0:01:41]} Rxb3 {[%emt 0:01:01]} 32. Qxb3 {[%emt 0:00:50]} Ra3 {[%emt 0:01:11]} 33. Qc2 {[%emt 0:00:23]} b4 {[%emt 0:00:57]} 34. Bc3 {[%emt 0:01:17]} Ba4 {[%emt 0:03:09]} 35. Qc1 {[%emt 0:00:20]} Rxc3 {[%emt 0:00:34]} 36. Qxc3 {[%emt 0:02:39]} bxc3 {[%emt 0:00:11]} 37. Rxb6 {[%emt 0:00:12]} Nxb6 {[%emt 0:00:08]} 38. Nxc3 {[%emt 0:00:05]} 0-1

[Event "7th Leer Open-A 2024"]
[Site "Leer"]
[Date "2024.10.31"]
[Round "1.47"]
[White "Mix, Clemens"]
[Black "Vollmer, Andreas"]
[Result "1-0"]
[ECO "D38"]
[WhiteElo "2076"]
[BlackElo "1857"]
[Annotator "RC"]
[PlyCount "59"]
[EventDate "2024.10.14"]
[EventType "swiss"]
[EventCountry "GER"]
[SourceTitle "playchess.com"]
[Source "ChessBase"]
[SourceQuality "1"]
[TimeControl "40/5400+30:900+30"]

1. d4 {[%emt 0:00:05]} Nf6 {[%emt 0:00:25]} 2. c4 {[%emt 0:00:06]} e6 {[%emt 0:00:14]} 3. Nf3 {[%emt 0:00:16]} d5 {[%emt 0:03:17]} 4. Nc3 {[%emt 0:02:50]} Bb4 {[%emt 0:01:09]} 5. cxd5 {[%emt 0:00:43]} Nxd5 {[%emt 0:05:15]} 6. Qb3 {[%emt 0:07:53]} O-O {[%emt 0:03:22]} 7. e4 {[%emt 0:01:26]} Bxc3+ {[%emt 0:04:30]} 8. bxc3 {[%emt 0:00:16]} Nb6 {[%emt 0:01:56]} 9. Bd3 {[%emt 0:03:44]} h6 {[%emt 0:01:00]} 10. O-O {[%emt 0:02:28]} N6d7 {[%emt 0:01:25]} 11. Re1 {[%emt 0:05:42]} b6 {[%emt 0:01:14]} 12. Bf4 {[%emt 0:03:19]} Bb7 {[%emt 0:01:59]} 13. Rad1 {[%emt 0:00:42]} Qc8 {[%emt 0:00:50]} 14. c4 {[%emt 0:02:46]} Re8 {[%emt 0:02:35]} 15. Bc2 {[%emt 0:04:34]} Nf8 {[%emt 0:00:22]} 16. e5 {[%emt 0:03:55]} Nbd7 {[%emt 0:00:49]} 17. Qe3 {[%emt 0:02:18]} Bxf3 {[%emt 1:08:38]} 18. Qxf3 {[%emt 0:56:27]} Ng6 {[%emt 0:00:00]} 19. Bc1 {[%emt 0:00:00]} Qa6 {[%emt 0:00:00]} 20. Be4 {[%emt 0:00:00]} Rad8 {[%emt 0:00:00]} 21. h4 {[%emt 0:00:00]} Nxh4 {[%emt 0:00:00]} 22. Qh5 {[%emt 0:00:00]} Nf5 {[%emt 0:00:00]} 23. g4 {[%emt 0:00:00]} Ne7 {[%emt 0:00:00]} 24. g5 {[%emt 0:00:00]} Nf5 {[%emt 0:00:00]} 25. Bxf5 {[%emt 0:00:00]} exf5 {[%emt 0:00:00]} 26. gxh6 {[%emt 0:00:00]} g6 {[%emt 0:00:00]} 27. h7+ {[%emt 0:00:00]} Kh8 {[%emt 0:00:00]} 28. Qh6 {[%emt 0:00:00]} Qxc4 {[%emt 0:00:00]} 29. Bg5 {[%emt 0:00:00]} Qd5 {[%emt 0:00:00]} 30. Bf6+ {[%emt 0:00:00]} 1-0